bitfinex/quotes_ETHUSD_20220219
["timestamp","ask_amount","ask_price","bid_price","bid_amount"]
[1645276948600,0.9167,2728.9,2728.2,0.64888451]
[1645276950253,1.8334,2728.9,2728.2,0.64888451]
[1645276950456,1.8334,2728.9,2727.9,1.2435]
[1645276950457,12.1267,2728.9,2727.7,0.1832]
[1645276950656,12.5667,2728.9,2727.4,1.19644142]
[1645276950850,1.09992,2728.8,2727.4,1.19644142]
[1645276951454,0.1832,2728.8,2727.9,0.8423029]
[1645276951653,1.19595902,2729.2,2727.9,0.8423029]
[1645276951852,0.91655,2729.4,2727.9,0.8423029]
[1645276952052,0.1832,2729.5,2728.0,3.5]
[1645276952251,0.1832,2729.5,2728.0,4.41638]
[1645276952454,0.1832,2729.5,2728.0,5.55028]
[1645276952651,12.06589347,2729.6,2728.0,5.55028]
[1645276952853,12.95839563,2729.6,2728.7,0.68399576]
[1645276953058,12.95839563,2729.6,2728.0,4.8171]
[1645276953298,12.95839563,2729.6,2728.5,1.55687897]
[1645276953998,12.06589347,2729.6,2728.5,1.55687897]
[1645276955001,14.88331278,2729.8,2728.5,1.55687897]
[1645276955199,15.62598402,2729.8,2728.8,0.63037672]
[1645276955401,15.62598402,2729.8,2728.3,9.6809608]
[1645276955606,15.62598402,2729.8,2728.5,1.55688893]
[1645276955800,15.62598402,2729.8,2728.6,9.6809608]
[1645276956101,15.62598402,2729.8,2728.7,0.42506432]
[1645276956502,15.62598402,2729.8,2728.9,0.66421935]
[1645276956701,0.03007071,2729.5,2728.9,1.0892484]
[1645276957355,0.03007071,2729.5,2728.9,0.42502905]
[1645276957555,0.03007071,2729.5,2728.2,12.7255]
[1645276957756,0.94651071,2729.5,2728.5,1.55688702]
[1645276958459,12.15651071,2729.5,2728.7,0.71495476]
[1645276958855,12.15651071,2729.5,2728.2,9.52]
[1645276959055,12.15651071,2729.5,2728.5,1.55696499]
[1645276960354,12.15651071,2729.5,2728.5,2.37695296]
[1645276960554,12.15651071,2729.5,2728.6,1.55696499]
[1645276961403,12.12644,2729.5,2728.6,1.55696499]
[1645276962206,1.83293,2729.5,2728.6,1.55696499]
[1645276962409,0.91644,2729.5,2728.6,1.55696499]
[1645276962907,0.91645,2729.6,2728.6,1.55696499]
[1645276962908,0.91652,2729.4,2728.6,1.55696499]
[1645276963111,3.5,2729.5,2728.6,1.55696499]
[1645276963312,15.62649,2729.5,2728.5,0.81998797]
[1645276963508,15.62649,2729.5,2728.2,9.3368]
[1645276963708,15.62649,2729.5,2728.5,1.55697358]
[1645276964549,16.54298,2729.5,2728.5,1.55697358]
[1645276964755,16.54298,2729.5,2728.5,2.40893539]
[1645276964949,16.54298,2729.5,2728.5,0.85196181]
[1645276965353,17.45943,2729.5,2728.5,0.85196181]
[1645276965551,17.45943,2729.5,2728.5,0.85115292]
[1645276966552,13.95943,2729.5,2728.5,0.85115292]
[1645276967752,0.74235876,2729.3,2728.5,0.85115292]
[1645276968207,2.74943,2729.5,2728.5,0.85115292]
[1645276968612,1.83298,2729.5,2728.5,0.85115292]
[1645276968805,0.91649,2729.5,2728.5,0.85115292]
[1645276969008,5.34054278,2729.7,2728.6,1.55691188]
[1645276969606,16.55054278,2729.7,2728.6,1.55691188]
[1645276969808,0.92413278,2729.6,2728.5,0.85115292]
[1645276970207,3.5,2729.5,2728.5,0.85115292]
[1645276970908,1.10733278,2729.7,2728.5,1.15115292]
[1645276971114,0.00754844,2729.8,2728.7,0.3]
[1645276971309,0.00754844,2729.8,2728.8,1.74007065]
[1645276971507,0.00754844,2729.8,2728.9,1.55687065]
[1645276971708,0.00754844,2729.8,2728.9,3.30097065]
[1645276971955,0.00754844,2729.8,2729.5,0.64552252]
[1645276972154,3.0318,2730.0,2729.5,0.64552252]
[1645276975920,3.0318,2730.0,2729.1,2.7436]
[1645276976117,0.00754844,2729.9,2729.2,1.55645619]
[1645276977321,4.2923575,2729.9,2729.2,1.55645619]
[1645276977619,4.2923575,2729.9,2729.1,2.7436]
[1645276977620,15.5023575,2729.9,2729.1,2.7436]
[1645276978022,13.57846278,2729.8,2729.1,2.7436]
[1645276978223,14.71,2729.7,2728.9,1.1927]
[1645276978421,14.71,2729.7,2728.6,0.2816]
[1645276978422,12.12653,2729.6,2728.6,0.2816]
[1645276978620,0.91656,2729.4,2728.7,1.55680861]
[1645276978824,3.5,2729.3,2728.7,1.55680861]
[1645276979120,1.68056075,2729.2,2728.6,0.2816]
[1645276979320,3.5,2729.1,2728.6,0.2816]
[1645276979552,14.71,2729.1,2728.6,0.2816]
[1645276980163,0.528,2729.0,2728.6,0.2816]
[1645276980357,12.1267,2728.9,2728.6,0.2816]
[1645276980556,0.528,2728.8,2728.6,0.2816]
[1645276981152,1.44473,2728.8,2728.6,0.2816]
[1645276981753,23.71,2728.7,2727.5,3.03676508]
[1645276981962,0.91679,2728.4,2727.6,1.5573645]
[1645276982156,15.238,2728.3,2727.1,4.212978]
[1645276982354,0.8837443,2727.9,2727.2,1.55754147]
[1645276982573,0.528,2727.8,2727.2,1.55754147]
[1645276983608,1.44506,2727.8,2727.2,1.55754147]
[1645276984407,0.528,2727.8,2727.2,1.55754147]
[1645276984707,3.96110564,2728.2,2727.2,1.55754147]
[1645276984708,4.41687,2728.2,2727.2,1.55754147]
[1645276984906,0.91687,2728.2,2727.2,1.55754147]
[1645276985308,0.91687,2728.2,2727.4,0.803945]
[1645276985506,0.91687,2728.2,2727.5,1.55754147]
[1645276985707,4.41687,2728.2,2727.5,1.55754147]
[1645276986511,4.41687,2728.2,2727.1,4.49161139]
[1645276986708,5.33378,2728.2,2727.2,1.55748321]
[1645276986949,5.33378,2728.2,2727.2,1.98277694]
[1645276987152,5.33378,2728.2,2727.3,1.55748321]
[1645276987353,5.33378,2728.2,2727.4,9.2473905]
[1645276987557,5.33378,2728.2,2727.5,1.55748321]
[1645276987752,0.91694,2728.1,2727.5,1.98272398]
[1645276987953,0.91694,2728.1,2727.5,0.42524077]
[1645276989260,4.417,2728.0,2727.5,0.42524077]
[1645276989452,5.86199,2728.0,2727.1,4.0663]
[1645276989653,3.27898,2728.0,2727.1,4.0663]
[1645276989853,3.27898,2728.0,2727.2,1.55760529]
[1645276990252,0.81217865,2727.8,2727.2,1.55760529]
[1645276990558,11.21,2727.6,2727.0,0.00112367]
[1645276990820,15.238,2727.5,2727.0,0.00112367]
[1645276991213,15.238,2727.5,2726.7,1.55783123]
[1645276991413,15.238,2727.5,2726.6,1.1833]
[1645276991414,0.74181617,2726.9,2726.6,1.1833]
[1645276991614,0.528,2726.8,2726.5,0.00449557]
[1645276991819,0.27484652,2726.8,2726.5,0.00449557]
[1645276992414,0.27484652,2726.8,2726.2,2.8301]
[1645276992616,3.77484652,2726.8,2726.5,0.00112388]
[1645276992816,0.91739,2726.7,2726.6,0.5]
[1645276993017,0.91739,2726.7,2726.5,0.00112388]
[1645276993414,0.528,2726.6,2725.6,0.42554107]
[1645276993615,0.528,2726.6,2725.7,1.55813362]
[1645276993616,3.5,2726.5,2725.7,1.55813362]
[1645276993816,0.528,2726.5,2726.1,0.00449626]
[1645276994557,4.28964837,2726.4,2726.1,0.00449626]
[1645276994868,4.28964837,2726.4,2725.6,0.42554107]
[1645276994869,11.738,2726.3,2725.6,0.42554107]
[1645276995054,11.738,2726.3,2726.2,0.00112402]
[1645276995253,11.738,2726.3,2726.2,2.402e-05]
[1645276995254,15.33495855,2726.3,2726.2,2.402e-05]
[1645276995562,15.33495855,2726.3,2724.3,0.6945145]
[1645276995563,2.87988,2726.2,2724.3,0.6945145]
[1645276995759,0.91796,2724.9,2723.7,0.92621979]
[1645276995955,0.91796,2724.9,2723.0,2.8757]
[1645276995956,0.918206,2724.6,2723.8,1.55907639]
[1645276996157,0.918206,2724.6,2723.0,2.8757]
[1645276996158,11.9214,2724.5,2723.4,1.55907639]
[1645276996460,11.21,2724.3,2723.5,1.55922046]
[1645276996653,11.21,2724.3,2723.6,1.55922046]
[1645276996654,11.21,2724.0,2723.6,1.55922046]
[1645276996959,0.528,2724.2,2723.7,2.44735352]
[1645276997156,1.0,2725.0,2723.8,1.55923045]
[1645276997157,0.528,2724.6,2723.8,1.55923045]
[1645276997356,0.780442,2725.4,2723.7,0.88812307]
[1645276997357,0.528,2724.9,2723.7,0.88812307]
[1645276997556,0.528,2724.9,2723.7,0.88948438]
[1645276998207,3.5,2724.8,2723.7,0.88948438]
[1645276998405,3.5,2724.8,2723.7,0.88812307]
[1645276998406,0.918,2724.8,2723.7,0.88812307]
[1645276998606,0.918,2724.8,2724.2,0.00136106]
[1645276998807,0.7114,2724.9,2724.2,0.00136106]
[1645276999008,0.528,2724.9,2724.2,0.00136106]
[1645276999407,0.1834,2725.1,2724.2,0.00136106]
[1645276999618,4.41779,2725.5,2723.9,2.7397]
[1645276999619,0.528,2725.3,2723.9,2.7397]
[1645276999810,0.528,2725.3,2724.2,0.84628477]
[1645277000008,0.528,2725.3,2724.4,0.00136094]
[1645277000808,0.528,2725.3,2724.2,0.84628477]
[1645277001008,0.528,2725.3,2724.7,0.00136079]
[1645277001222,14.71,2725.2,2724.7,0.00136079]
[1645277001412,3.5,2725.2,2724.7,0.00136079]
[1645277001612,4.41789,2725.2,2724.7,0.00136079]
[1645277002071,4.41789,2725.2,2723.9,2.7397]
[1645277002072,0.78199126,2724.8,2723.9,2.7397]
[1645277002270,0.78199126,2724.8,2724.4,0.00544377]
[1645277002868,11.21,2724.6,2724.4,0.00544377]
[1645277003172,11.21,2724.6,2723.3,2.8991]
[1645277003173,15.238,2724.5,2723.3,2.8991]
[1645277003467,12.12832,2724.2,2723.3,2.8991]
[1645277003669,4.028,2724.1,2724.0,0.00544467]
[1645277003969,0.528,2724.1,2723.3,2.85454467]
[1645277004164,0.78088605,2724.2,2723.3,2.85454467]
[1645277004566,1.69911605,2724.2,2723.3,2.85454467]
[1645277004769,1.69911605,2724.2,2722.7,3.54333702]
[1645277004770,11.21,2724.1,2722.7,0.04333702]
[1645277004969,11.21,2724.1,2722.7,0.0020956]
[1645277004970,0.9183,2724.0,2722.7,0.0020956]
[1645277005166,11.196,2723.8,2722.2,0.0020956]
[1645277005366,2.27698,2723.7,2722.8,0.2755]
[1645277005567,0.44,2723.6,2722.8,0.2755]
[1645277005819,12.40757485,2723.6,2722.8,0.2755]
[1645277006021,12.40757485,2723.6,2722.9,0.00119501]
[1645277006022,0.91849,2723.4,2722.9,0.00119501]
[1645277006820,0.91849,2723.4,2722.8,0.2755]
[1645277007218,0.91849,2723.4,2723.0,0.00119495]
[1645277007425,23.99064093,2723.3,2723.0,0.00119495]
[1645277007620,21.71466829,2723.2,2723.0,0.00119495]
[1645277007822,21.71466829,2723.2,2722.6,0.0047805]
[1645277007823,9.0,2723.0,2722.6,0.0047805]
[1645277008024,2.7557457,2723.3,2722.6,0.0047805]
[1645277008025,35.50676694,2722.9,2722.6,0.0047805]
[1645277008220,11.21,2722.7,2722.1,0.0020956]
[1645277008420,35.9477506,2722.6,2722.1,0.0020956]
[1645277008625,32.00977747,2722.5,2721.6,0.0020956]
[1645277008822,6.39205784,2722.6,2721.4,0.0020956]
[1645277008823,35.950586,2722.4,2721.4,0.0020956]
[1645277009021,11.21,2722.2,2721.4,0.0020956]
[1645277009223,21.24220726,2722.1,2721.4,0.0020956]
[1645277009461,21.24220726,2722.1,2719.7,9.78478]
[1645277009462,0.65019624,2721.2,2720.5,0.00209145]
[1645277009662,0.65019624,2721.2,2719.7,28.87709063]
[1645277009663,0.65019624,2721.2,2720.0,0.00209145]
[1645277009865,21.72298358,2721.1,2719.8,2.44099145]
[1645277010168,21.24651439,2721.0,2719.8,2.62469145]
[1645277010363,21.24651439,2721.0,2719.9,0.04035807]
[1645277010561,20.80759836,2720.9,2719.9,1.55093208]
[1645277010760,20.80759836,2720.9,2720.0,0.18579145]
[1645277010960,20.80759836,2720.9,2720.1,0.00209145]
[1645277011160,0.44,2721.6,2720.1,0.00209145]
[1645277011161,0.7378341,2721.4,2720.1,0.00209145]
[1645277011759,0.44,2721.6,2720.1,0.00209145]
[1645277011760,3.5,2721.3,2720.1,0.00209145]
[1645277011962,0.44,2721.6,2719.9,3.68579145]
[1645277012560,0.9192207,2721.6,2719.9,0.18579145]
[1645277012767,0.66509738,2721.2,2719.9,0.18579145]
[1645277012965,0.91933,2721.1,2719.9,0.18579145]
[1645277013237,0.91933,2721.1,2720.6,0.00132929]
[1645277013238,1.10303,2721.1,2720.6,0.00132929]
[1645277013619,1.83898,2720.9,2720.6,0.00132929]
[1645277013814,0.65918049,2720.7,2720.6,0.00132929]
[1645277014218,0.65918049,2720.7,2719.2,3.5]
[1645277014219,0.84288049,2720.7,2719.7,0.00209145]
[1645277014415,0.91947,2720.6,2719.3,3.50209145]
[1645277014615,0.84288049,2720.7,2719.3,3.50209145]
[1645277014616,0.84288049,2720.7,2720.5,0.00132934]
[1645277014820,1.84288049,2720.7,2720.5,2.934e-05]
[1645277015023,9.0,2720.5,2720.1,0.00531817]
[1645277015218,0.72065855,2720.4,2720.1,0.00531817]
[1645277015520,0.72065855,2720.4,2720.1,1.817e-05]
[1645277015521,3.5,2720.3,2720.1,1.817e-05]
[1645277015716,1.83953,2720.0,2717.9,8.35739145]
[1645277015916,3.94,2719.9,2718.0,0.04124142]
[1645277016515,0.76840454,2719.2,2718.0,0.04124142]
[1645277016814,3.94,2719.9,2718.0,0.04124142]
[1645277016815,0.91981,2719.7,2718.0,0.04124142]
[1645277017062,0.91977,2719.7,2718.0,0.04124142]
[1645277017759,3.5,2719.6,2718.0,0.04124142]
[1645277017959,0.77272483,2719.3,2718.0,0.04124142]
[1645277018165,0.77272483,2719.3,2718.3,0.00157255]
[1645277018760,3.5,2719.8,2718.3,0.00157255]
[1645277018961,0.1839,2720.0,2718.3,0.9195843]
[1645277019162,0.1837,2720.2,2718.4,3.50209145]
[1645277019468,0.1837,2720.2,2718.7,0.00129704]
[1645277019660,0.99330434,2720.2,2718.7,0.86129969]
[1645277019864,0.1837,2720.2,2718.8,3.50209145]
[1645277020062,1.10419867,2720.3,2718.9,1.3594171]
[1645277020262,0.09695855,2720.4,2719.0,0.00209145]
[1645277020463,5.73421,2720.9,2719.0,8.98575257]
[1645277020464,0.401,2720.9,2719.0,8.98575257]
[1645277020730,0.401,2720.9,2719.3,4.99996112]
[1645277020731,0.2173,2720.9,2719.3,4.99996112]
[1645277020914,0.2173,2720.9,2719.4,4.12579145]
[1645277021115,0.2173,2720.9,2719.7,0.77271961]
[1645277021313,0.2173,2720.9,2719.8,0.00209145]
[1645277021513,0.2173,2720.9,2719.8,3.50209145]
[1645277021718,0.2173,2720.9,2719.8,3.80209145]
[1645277021922,0.2173,2720.9,2720.0,4.99996112]
[1645277022217,0.1837,2722.1,2720.7,0.91879]
[1645277022415,1.0317,2722.2,2720.8,0.48333287]
[1645277022615,1.0317,2722.2,2720.9,0.44]
[1645277022818,1.0317,2722.2,2720.9,2.46304285]
[1645277023014,3.5,2722.1,2720.9,0.62579145]
[1645277023222,1.0317,2722.2,2720.9,0.44209145]
[1645277023414,3.5,2722.1,2720.9,0.44209145]
[1645277023718,0.82710143,2722.0,2720.9,0.44209145]
[1645277023923,0.82710143,2722.0,2720.9,0.00209145]
[1645277023924,11.21,2721.9,2720.9,0.00209145]
[1645277024123,11.21,2721.7,2720.7,0.00209145]
[1645277024315,14.8937,2721.6,2720.7,0.00209145]
[1645277024554,14.71,2721.6,2720.7,0.00209145]
[1645277024965,11.21,2720.6,2720.0,0.00129642]
[1645277025161,11.21,2720.6,2720.1,0.00207105]
[1645277025162,5.17338152,2720.5,2720.1,0.00207105]
[1645277025356,11.21,2720.4,2720.0,0.00129642]
[1645277025555,11.21,2720.2,2720.0,0.00129642]
[1645277025760,0.44,2720.1,2720.0,0.00129642]
[1645277026359,0.44,2720.1,2719.7,0.00206166]
[1645277026654,1.06195081,2720.6,2719.6,0.2695]
[1645277026856,11.21,2720.5,2719.7,0.00206166]
[1645277027254,5.339,2720.5,2719.7,0.00206166]
[1645277027854,5.339,2720.5,2720.0,0.00129642]
[1645277028053,11.3937,2720.4,2720.0,0.00129642]
[1645277028310,12.12963,2720.2,2720.0,0.00129642]
[1645277028507,3.5,2720.1,2720.0,0.00129642]
[1645277028706,3.6837,2720.1,2719.7,0.00206166]
[1645277028906,11.21,2720.0,2719.6,0.2695]
[1645277029205,3.6837,2720.1,2719.6,0.2695]
[1645277029409,0.91964,2720.0,2719.6,0.2695]
[1645277029607,3.6837,2720.1,2719.6,0.2695]
[1645277029608,0.1837,2720.1,2719.6,0.2695]
[1645277030006,0.91958,2720.2,2719.6,0.2695]
[1645277030208,3.5,2720.1,2719.6,0.2695]
[1645277030609,14.71,2720.1,2719.6,0.2695]
[1645277030814,15.81334,2720.1,2719.6,0.2695]
[1645277031009,4.60334,2720.1,2719.6,0.2695]
[1645277031212,0.1837,2720.1,2719.6,0.2695]
[1645277031409,0.91958,2720.2,2719.6,0.2695]
[1645277031810,1.83917,2720.2,2719.6,0.2695]
[1645277032058,0.91958,2720.2,2719.6,0.2695]
[1645277032253,4.41958,2720.2,2719.6,0.2695]
[1645277032453,7.1785719,2720.2,2719.6,0.2695]
[1645277032654,7.1785719,2720.2,2719.8,0.00123493]
[1645277032851,7.3622719,2720.2,2719.8,0.00043493]
[1645277033053,18.5722719,2720.2,2719.8,0.00043493]
[1645277033456,18.5722719,2720.2,2719.6,0.2695]
[1645277033651,18.5722719,2720.2,2718.9,0.00206166]
[1645277033652,0.91967,2719.8,2718.9,0.00206166]
[1645277034555,12.12964,2720.1,2718.9,0.00206166]
[1645277034756,0.91956,2720.2,2718.9,0.00206166]
[1645277034953,11.21,2720.1,2718.9,0.00206166]
[1645277035159,14.71,2720.1,2718.9,0.00206166]
[1645277035358,15.62956,2720.1,2718.9,0.00206166]
[1645277035554,15.62956,2720.1,2718.7,0.00206166]
[1645277036014,0.91972,2719.8,2718.7,0.00206166]
[1645277036518,0.91969,2719.7,2718.7,0.00206166]
[1645277036711,4.41969,2719.7,2718.7,0.00206166]
[1645277037012,15.62969,2719.7,2718.7,0.00206166]
[1645277037212,1.83972,2719.4,2718.7,0.00206166]
[1645277037413,5.33972,2719.4,2719.1,0.00129485]
[1645277037610,3.67951,2719.4,2719.1,0.00129485]
[1645277038413,3.67951,2719.4,2718.7,0.00206166]
[1645277038414,0.91993,2719.2,2718.7,0.00206166]
[1645277038616,4.41999,2719.1,2718.7,0.00155926]
[1645277039560,0.92008,2718.9,2718.3,0.00206166]
[1645277039758,5.34015,2718.9,2718.4,0.00155946]
[1645277039956,1.84015,2718.9,2718.4,0.00155946]
[1645277040357,0.92007,2718.9,2718.4,0.00155946]
[1645277040557,5.33997,2719.3,2718.4,0.00155946]
[1645277040760,0.91997,2719.0,2718.1,0.00206166]
[1645277041265,0.91997,2719.0,2718.5,0.00129511]
[1645277042060,0.91997,2719.0,2717.8,0.00206166]
[1645277042260,0.91997,2719.0,2718.6,0.00129506]
[1645277042462,0.91997,2718.9,2718.6,0.00129506]
[1645277043061,0.91997,2718.9,2717.8,0.00206166]
[1645277043310,4.41997,2718.9,2717.8,0.00206166]
[1645277043509,4.41997,2718.9,2718.6,0.00129506]
[1645277043708,0.91997,2718.9,2718.6,0.00129506]
[1645277044412,0.91997,2718.9,2717.8,0.8663471]
[1645277044609,0.91997,2718.9,2718.6,0.00129506]
[1645277044808,5.33997,2719.0,2718.6,0.00129506]
[1645277044809,1.83991,2719.0,2718.6,0.00129506]
[1645277045509,1.83991,2719.0,2717.8,0.8663471]
[1645277045709,0.91994,2719.0,2717.8,0.8663471]
[1645277045910,3.69991859,2719.2,2718.7,0.00129504]
[1645277045911,1.11977859,2719.2,2718.7,0.00129504]
[1645277046208,0.01601859,2719.2,2718.7,0.00129504]
[1645277046807,0.01601859,2719.2,2718.3,0.00518092]
[1645277047059,0.01601859,2719.2,2718.8,0.00129496]
[1645277047261,0.93587859,2719.2,2718.8,0.00129496]
[1645277048158,0.93587859,2719.2,2718.9,0.00129494]
[1645277048159,0.93595849,2719.2,2718.9,0.00129494]
[1645277048358,0.01601859,2719.2,2718.9,0.00129494]
[1645277049160,0.01601859,2719.2,2718.0,0.86417515]
[1645277049356,0.01601859,2719.2,2718.1,0.00206166]
[1645277049560,0.01601859,2719.2,2718.9,0.00129492]
[1645277049761,0.91986,2719.2,2718.9,0.00129492]
[1645277050360,0.91986,2719.2,2717.9,0.71782681]
[1645277050704,0.91986,2719.2,2718.9,9.492e-05]
[1645277050705,0.91995,2719.0,2718.9,9.492e-05]
[1645277050905,13.049967,2719.0,2718.9,9.492e-05]
[1645277051308,1.839967,2719.0,2718.9,9.492e-05]
[1645277051519,1.839967,2719.0,2717.8,0.00206166]
[1645277051708,0.92008,2718.7,2717.8,0.88902083]
[1645277051904,0.92009,2718.6,2717.8,0.88902083]
[1645277052304,0.92009,2718.6,2717.8,0.00206166]
[1645277052907,0.92005,2718.7,2718.6,1.66668366]
[1645277053106,1.84016,2718.9,2718.6,1.66668366]
[1645277053310,1.83991,2719.2,2718.6,1.66668366]
[1645277053708,0.01933249,2719.2,2718.6,1.66668366]
[1645277054311,0.01933249,2719.2,2718.8,0.00129199]
[1645277054563,0.9199,2719.1,2718.8,0.00129199]
[1645277055161,0.01933249,2719.2,2718.6,1.66668366]
[1645277055367,0.01933249,2719.2,2718.8,0.00129196]
[1645277055963,0.89010267,2719.8,2718.8,0.00129196]
[1645277056162,0.89010267,2719.8,2718.8,0.00335362]
[1645277056364,0.89010267,2719.8,2718.8,0.00206166]
[1645277056365,1.83951,2719.7,2718.8,0.00206166]
[1645277056565,0.91975,2719.7,2718.8,0.00206166]
[1645277056765,0.91987,2719.6,2719.0,0.00129189]
[1645277057363,0.91986,2719.4,2719.0,0.00129189]
[1645277057564,0.91986,2719.4,2718.8,0.00206166]
[1645277057966,0.91986,2719.4,2719.0,0.00129189]
[1645277057967,1.83973,2719.4,2719.0,0.00129189]
[1645277058603,0.91982,2719.5,2719.0,0.00129189]
[1645277058806,2.02311,2720.1,2718.7,0.00206166]
[1645277059107,0.11167234,2719.0,2718.7,1.53121682]
[1645277059305,0.11167234,2719.0,2718.8,0.00206166]
[1645277059508,0.11167234,2719.0,2718.9,0.84993079]
[1645277059705,7.234e-05,2719.0,2718.9,0.84993079]
[1645277059908,7.234e-05,2719.0,2718.9,5.02394298]
[1645277060111,7.234e-05,2719.0,2718.9,5.32394298]
[1645277060306,7.234e-05,2719.0,2718.9,2.26394298]
[1645277060610,7.234e-05,2719.0,2718.9,5.76394298]
[1645277060812,7.234e-05,2719.0,2718.9,1.52394298]
[1645277061406,7.234e-05,2719.0,2718.8,1.52394298]
[1645277061604,7.234e-05,2719.0,2718.9,1.52394298]
[1645277061803,7.234e-05,2719.0,2718.9,1.5260051]
[1645277062060,7.234e-05,2719.0,2718.9,0.00206212]
[1645277062251,7.234e-05,2719.0,2718.9,1.5260051]
[1645277062851,7.234e-05,2719.0,2718.9,0.00206212]
[1645277063652,0.07319305,2719.0,2718.9,0.00206212]
[1645277063856,0.07319305,2719.0,2718.9,1.52394298]
[1645277064257,0.07319305,2719.0,2718.8,0.66223009]
[1645277064659,0.07319305,2719.0,2718.8,0.00129196]
[1645277064857,0.07319305,2719.0,2718.7,1.1576]
[1645277065257,0.07319305,2719.0,2718.8,0.00121124]
[1645277066114,1.81269305,2719.7,2718.7,1.1576]
[1645277066318,0.07811058,2719.6,2718.8,1.53189838]
[1645277066916,2.75918,2719.9,2718.8,1.53189838]
[1645277067117,0.07810758,2719.8,2718.8,5.03189838]
[1645277067325,0.07810758,2719.7,2718.9,1.52862502]
[1645277067515,0.75399426,2720.4,2719.0,2.90827326]
[1645277067715,0.02809959,2720.3,2719.1,1.53068714]
[1645277067916,2.51499668,2720.5,2719.1,1.53068714]
[1645277067917,2.51499668,2720.5,2719.2,0.00206212]
[1645277068117,2.51499668,2720.5,2719.6,0.75127878]
[1645277068318,3.43449668,2720.5,2719.7,0.00206212]
[1645277068518,2.75861,2720.5,2719.7,0.00206212]
[1645277068916,3.43449668,2720.5,2719.7,0.00206212]
[1645277069324,0.67588668,2720.6,2719.7,0.00206212]
[1645277069564,0.67588668,2720.5,2719.7,0.00206212]
[1645277069763,0.67588668,2720.4,2719.7,0.00206212]
[1645277070162,0.67588668,2720.5,2719.7,0.00206212]
[1645277070364,0.67588668,2720.6,2719.7,0.00206212]
[1645277070765,3.60388724,2721.1,2719.7,0.00206212]
[1645277070766,0.67588668,2720.8,2719.7,0.00206212]
[1645277070964,0.67588668,2720.6,2719.7,0.00206212]
[1645277071564,0.91943,2720.5,2719.7,0.00206212]
[1645277071961,1.59531668,2720.5,2719.7,0.00206212]
[1645277072163,0.67588668,2720.5,2719.7,0.00206212]
[1645277072762,0.67588668,2720.6,2719.7,0.80066773]
[1645277072968,0.62588668,2720.6,2719.8,0.00206212]
[1645277073215,0.92413278,2720.8,2719.8,0.00206212]
[1645277073216,0.9195113,2720.5,2719.8,0.00206212]
[1645277073807,0.02985163,2720.4,2719.3,0.00206212]
[1645277074007,0.02985163,2720.4,2719.3,0.80066773]
[1645277074207,0.94936163,2720.4,2719.3,0.80066773]
[1645277074608,0.94936163,2720.4,2719.4,0.86791744]
[1645277074807,0.94936163,2720.4,2719.5,0.00206212]
[1645277075008,0.94936163,2720.4,2719.5,0.78380315]
[1645277075216,0.9195788,2720.3,2719.5,0.78380315]
[1645277075406,0.91956,2720.1,2719.5,0.78380315]
[1645277075608,0.91956,2720.1,2719.5,0.78174103]
[1645277076108,0.91956,2720.1,2719.3,0.00206212]
[1645277076308,0.91956,2720.1,2719.3,0.78380315]
[1645277076509,0.94932163,2720.4,2719.3,1.63710098]
[1645277077154,0.02985163,2720.4,2719.3,1.63710098]
[1645277077553,0.94934163,2720.4,2719.3,1.63710098]
[1645277077759,1.86886163,2720.4,2719.3,1.63710098]
[1645277078454,0.94934163,2720.4,2719.3,1.63710098]
[1645277078652,0.91956,2720.3,2719.3,1.63710098]
[1645277079255,0.94934163,2720.4,2719.3,1.63710098]
[1645277080257,1.86884163,2720.4,2719.3,1.63710098]
[1645277080555,0.02985163,2720.4,2719.4,3.5]
[1645277080812,0.02985163,2720.4,2719.4,4.11982732]
[1645277081012,0.02985163,2720.4,2719.4,0.61982732]
[1645277081414,0.02985163,2720.4,2720.0,0.84030417]
[1645277081616,0.02985163,2720.4,2720.0,1.46013149]
[1645277081812,0.02985163,2720.4,2720.0,0.61982732]
[1645277082011,0.02985163,2720.4,2719.5,1.2016]
[1645277082012,0.06198273,2719.9,2719.5,1.2016]
[1645277082210,0.06198273,2719.9,2719.5,1.82142732]
[1645277083011,0.06198273,2719.9,2719.7,0.70746322]
[1645277083212,0.06198273,2719.9,2719.7,1.3004854]
[1645277084313,0.06198273,2719.9,2719.7,0.59302218]
[1645277084555,0.06198273,2719.9,2719.7,0.50956718]
[1645277085256,0.06198273,2719.9,2719.4,0.50956718]
[1645277085459,0.06198273,2719.9,2719.6,0.84374917]
[1645277085656,0.06198273,2719.9,2719.6,1.35331635]
[1645277087759,0.06198273,2719.9,2719.7,1.53645291]
[1645277087961,0.06198273,2719.9,2719.7,2.01527796]
[1645277088248,0.06198273,2719.9,2719.8,1.53645291]
[1645277088446,0.03280013,2720.3,2719.9,9.0]
[1645277088647,0.03280013,2720.3,2720.0,1.53645291]
[1645277088850,0.79494664,2721.1,2720.0,1.91466242]
[1645277089051,0.79494664,2721.1,2720.1,1.53645291]
[1645277089052,0.07808079,2721.0,2720.1,1.53645291]
[1645277089248,0.07808079,2721.0,2720.1,1.91466242]
[1645277089644,0.07808079,2721.0,2720.2,1.53645291]
[1645277089847,0.07808079,2721.0,2720.7,0.6653108]
[1645277090044,0.07808079,2721.0,2720.7,1.04352031]
[1645277090845,0.07808079,2721.0,2720.7,0.37820951]
[1645277093678,0.03652026,2720.9,2720.7,0.37820951]
[1645277096827,0.0780746,2720.8,2720.7,0.37820951]
[1645277098434,0.0780746,2720.8,2720.1,1.1944]
[1645277098435,9.0,2720.7,2720.1,1.1944]
[1645277098628,9.0,2720.7,2720.1,0.37173218]
[1645277098629,0.0780746,2720.6,2720.1,0.37173218]
[1645277098826,0.53,2720.5,2720.1,0.37173218]
[1645277099026,0.0780746,2720.4,2720.1,0.37173218]
[1645277099229,0.53,2720.3,2720.1,0.37173218]
[1645277099463,0.53,2720.3,2719.3,2.9646]
[1645277099464,1.8393,2720.0,2719.3,2.9646]
[1645277099765,0.0780746,2719.9,2719.3,3.33633218]
[1645277099970,1.83946,2720.1,2719.3,0.37173218]
[1645277099971,0.0780746,2719.8,2719.3,0.37173218]
[1645277100167,0.6080746,2719.7,2719.3,0.37173218]
[1645277100369,0.0780746,2719.6,2719.0,0.00527294]
[1645277100565,1.83974,2719.5,2719.0,0.00527294]
[1645277100764,0.0780746,2719.4,2719.0,0.00527294]
[1645277101163,0.0780746,2719.4,2718.8,0.65454509]
[1645277101366,0.0780746,2719.4,2719.0,0.0010546]